bitfinex/quotes_ETHUSD_20240711
["timestamp","ask_amount","ask_price","bid_price","bid_amount"]
[1720682579622,0.03215368,3123.7,3123.4,0.60413736]
[1720682581521,0.03215368,3123.7,3123.5,0.06402058]
[1720682584036,0.03215368,3123.7,3123.5,0.12841]
[1720682584541,1.10955997,3123.6,3123.5,0.12841]
[1720682584903,1.10955997,3123.6,3123.3,3.98335298]
[1720682585129,3.55139763,3123.5,3123.4,3.0]
[1720682585327,3.55139763,3123.5,3122.1,7.06361644]
[1720682585527,1.10959763,3123.4,3122.0,2.3439]
[1720682586847,2.45912769,3123.5,3122.0,2.3439]
[1720682587033,1.10998926,3123.3,3122.1,0.23439]
[1720682587248,1.10998926,3123.2,3122.1,3.23439]
[1720682587431,1.10998926,3123.1,3122.3,1.994]
[1720682587633,0.01732769,3123.5,3122.7,1.994]
[1720682587823,1.10973048,3123.4,3122.8,0.81342682]
[1720682588022,1.10973048,3123.3,3122.8,0.81342682]
[1720682588238,1.10973048,3123.2,3122.8,3.81342682]
[1720682588423,1.10973048,3123.1,3122.8,3.81342682]
[1720682588620,1.10973048,3123.4,3122.8,3.81342682]
[1720682589156,1.10973048,3123.4,3123.0,2.4467]
[1720682589351,1.10973048,3123.4,3123.1,0.61402534]
[1720682589652,1.10973048,3123.4,3123.1,3.55]
[1720682590228,0.01732769,3123.5,3123.1,0.55]
[1720682590455,1.10970502,3123.3,3123.2,0.06402486]
[1720682590763,1.10970502,3123.3,3123.2,0.55]
[1720682591122,1.10970502,3123.3,3123.0,0.55]
[1720682591340,1.10970502,3123.2,3123.0,0.55]
[1720682591520,0.01732769,3123.5,3123.0,0.55]
[1720682591720,1.10967896,3123.4,3123.1,0.06402452]
[1720682591959,1.10967896,3123.3,3123.2,0.55]
[1720682592321,1.10967896,3123.3,3123.0,0.55]
[1720682592565,0.01732769,3123.5,3123.0,0.55]
[1720682592566,1.10967896,3123.2,3123.0,0.55]
[1720682592857,0.01732769,3123.5,3123.0,0.55]
[1720682593152,1.10969407,3123.4,3123.1,0.06402492]
[1720682593378,1.10969407,3123.3,3123.2,0.55]
[1720682593682,1.10969407,3123.4,3123.0,0.55]
[1720682593975,1.10969602,3123.3,3123.0,0.55]
[1720682594481,0.01732769,3123.5,3123.0,0.55]
[1720682594482,1.10969602,3123.2,3123.0,0.55]
[1720682594782,0.01732769,3123.5,3123.0,0.55]
[1720682594942,1.10967149,3123.4,3123.1,0.06402495]
[1720682595144,1.10967149,3123.3,3123.2,0.55]
[1720682595386,1.10967149,3123.4,3123.0,0.55]
[1720682595580,1.10967149,3123.4,3123.0,1.05344598]
[1720682597145,0.01732769,3123.5,3123.0,1.05344598]
[1720682597349,1.10970205,3123.4,3123.0,1.05344598]
[1720682597543,0.01732769,3123.5,3123.0,1.05344598]
[1720682597742,1.10970161,3123.4,3123.0,0.6140289]
[1720682597978,0.01732769,3123.5,3123.0,0.6140289]
[1720682597979,1.10970161,3123.3,3123.0,0.6140289]
[1720682598281,1.10970161,3123.2,3123.0,0.55]
[1720682598480,1.10970161,3123.4,3123.0,0.55]
[1720682598787,0.01732769,3123.5,3123.0,0.55]
[1720682598788,1.10970161,3123.3,3123.0,0.55]
[1720682598948,1.10970161,3123.4,3123.0,0.55]
[1720682599148,1.10970161,3123.4,3123.0,0.9894171]
[1720682599356,1.10970161,3123.4,3123.0,0.55]
[1720682599987,1.10970161,3123.4,3122.9,0.55]
[1720682600583,0.01732769,3123.5,3122.6,3.0]
[1720682600785,1.10978608,3123.3,3122.6,3.06403197]
[1720682600971,1.10978608,3123.2,3122.6,4.07679681]
[1720682601141,1.10978608,3123.4,3122.6,4.07679681]
[1720682601841,1.10978608,3123.4,3122.7,1.994]
[1720682602045,1.10978608,3123.4,3122.9,2.3947]
[1720682602258,1.10978608,3123.4,3123.0,0.61402426]
[1720682602454,1.10978608,3123.4,3123.1,0.60087243]
[1720682602647,1.10978608,3123.4,3123.2,0.61402402]
[1720682603555,1.10978608,3123.4,3123.0,3.0640242]
[1720682603769,1.10969796,3123.3,3123.1,0.55]
[1720682604155,1.10970908,3123.2,3123.1,0.55]
[1720682604749,1.10970962,3123.2,3123.0,0.55]
[1720682604964,0.01732769,3123.5,3123.0,0.55]
[1720682605177,1.10970955,3123.4,3123.1,0.06402545]
[1720682605362,1.10970955,3123.3,3123.1,0.06402545]
[1720682605562,1.10970955,3123.2,3123.1,0.06402545]
[1720682605762,1.10970955,3123.2,3123.1,0.55]
[1720682606173,1.10970955,3123.2,3123.0,0.55]
[1720682606362,1.10970955,3123.1,3123.0,0.55]
[1720682606557,1.10970955,3123.4,3123.0,0.91140319]
[1720682606758,1.10970955,3123.4,3123.1,0.06402913]
[1720682606988,1.10970955,3123.4,3123.0,0.91140319]
[1720682607688,1.10970715,3123.3,3123.0,0.55]
[1720682607894,1.10970715,3123.2,3122.9,0.55]
[1720682608094,1.10970715,3123.4,3122.7,0.55]
[1720682608388,1.10970715,3123.3,3122.7,1.71263813]
[1720682608584,1.10970715,3123.4,3122.7,4.71263813]
[1720682608772,0.33557106,3123.3,3122.7,4.71263813]
[1720682608971,1.10970715,3123.2,3122.7,1.71263813]
[1720682610695,1.10970715,3123.2,3122.8,0.06403311]
[1720682610851,1.10970715,3123.2,3122.9,0.72766712]
[1720682611047,0.33557106,3123.3,3122.9,0.72766712]
[1720682611280,1.10976356,3123.2,3122.9,0.72766712]
[1720682611479,1.10976356,3123.1,3122.9,0.72766712]
[1720682611683,1.10976356,3123.0,3122.9,2.99926712]
[1720682611888,1.10976356,3123.0,3122.9,5.99926712]
[1720682612098,1.10976356,3123.0,3122.9,3.72766712]
[1720682612281,1.10976356,3123.0,3122.9,0.72766712]
[1720682614382,1.10976356,3123.0,3122.9,0.55]
[1720682614593,0.33557106,3123.3,3122.7,0.55]
[1720682614797,1.10977359,3123.0,3122.7,0.55]
[1720682614996,1.10977359,3122.9,3122.6,3.0]
[1720682615306,1.10977359,3122.8,3122.5,7.06361644]
[1720682615462,1.3928407,3123.2,3122.5,7.06361644]
[1720682615796,1.10977359,3123.1,3122.5,7.06361644]
[1720682616692,1.10977359,3123.1,3121.8,2.3014]
[1720682616693,1.10977359,3123.1,3122.6,3.0]
[1720682616899,2.2644,3123.0,3122.3,3.0]
[1720682617097,1.44719095,3122.9,3122.2,19.52361644]
[1720682617309,2.2644,3122.7,3122.2,19.52361644]
[1720682617500,1.10977359,3122.6,3121.9,7.06361644]
[1720682617695,1.10977359,3122.6,3121.5,1.994]
[1720682617899,0.33741736,3122.6,3121.5,0.1994]
[1720682618205,0.33741736,3122.6,3121.2,2.93177048]
[1720682618206,1.11015218,3122.5,3121.3,0.06405374]
[1720682618408,1.11015218,3122.4,3121.3,0.06405374]
[1720682618614,1.11015218,3122.3,3121.4,0.55]
[1720682618802,1.11015218,3122.2,3121.4,0.55]
[1720682619002,1.11015218,3122.2,3121.2,3.08805784]
[1720682619003,1.11015218,3122.1,3121.3,0.55]
[1720682619177,1.11015218,3122.0,3121.4,0.42145698]
[1720682619377,1.11015218,3121.9,3121.4,0.42145698]
[1720682619589,0.33741736,3122.6,3121.4,0.42145698]
[1720682619789,1.11015062,3122.5,3121.4,0.42145698]
[1720682619990,1.11015062,3122.4,3121.4,0.42145698]
[1720682620213,0.33741736,3122.6,3121.4,0.42145698]
[1720682620214,1.11015062,3122.5,3121.4,0.42145698]
[1720682620513,2.50900874,3122.4,3121.5,0.55]
[1720682620714,2.50900874,3122.3,3121.6,0.06405872]
[1720682620876,2.50900874,3122.2,3121.6,0.06405872]
[1720682621077,2.50900874,3122.1,3121.6,0.06405872]
[1720682621316,2.50906873,3122.0,3121.5,0.61405914]
[1720682621482,2.50907492,3121.9,3121.5,0.55]
[1720682621679,1.39886133,3121.8,3121.5,0.55]
[1720682621878,0.28464261,3122.4,3121.5,0.94714607]
[1720682622083,2.2795,3122.2,3121.5,0.55]
[1720682622383,2.50911889,3122.1,3121.4,0.55]
[1720682622693,2.50911889,3122.0,3121.4,0.55]
[1720682622877,2.50911889,3121.9,3121.3,0.55]
[1720682623079,1.39888929,3121.8,3121.3,0.55]
[1720682623322,2.2795,3122.2,3121.2,3.0]
[1720682623323,1.39894661,3121.7,3121.2,3.0]
[1720682623531,2.37362769,3123.5,3121.5,1.994]
[1720682623736,2.50865783,3123.2,3121.9,1.994]
[1720682623892,2.50865783,3123.1,3122.1,2.3715]
[1720682624198,2.50865783,3123.0,3122.2,0.06404254]
[1720682624403,2.50865783,3122.9,3122.2,0.06404254]
[1720682624650,1.10993026,3122.8,3122.3,0.55]
[1720682624793,1.39851218,3122.7,3122.4,0.06404345]
[1720682624993,1.39851218,3122.7,3122.3,0.61404475]
[1720682625302,0.33562171,3123.1,3122.3,0.61404475]
[1720682625501,2.50833626,3123.0,3122.3,0.61404475]
[1720682625702,2.50833626,3122.9,3122.4,0.4157599]
[1720682625930,1.39844398,3122.8,3122.5,0.61403906]
[1720682626125,0.33562171,3123.1,3122.5,0.61403906]
[1720682626347,2.50824428,3123.0,3122.5,0.61403906]
[1720682626531,2.50824428,3122.9,3122.5,0.61403906]
[1720682626694,1.39840168,3122.8,3122.5,0.61403906]
[1720682627026,0.33562171,3123.1,3122.5,0.61403906]
[1720682627245,2.5082193,3123.0,3122.5,0.61403906]
[1720682627402,2.5082193,3122.9,3122.5,0.61403906]
[1720682627741,1.39838775,3122.8,3122.5,0.61403906]
[1720682627941,0.33562171,3123.1,3122.5,0.61403906]
[1720682628244,2.50821685,3123.0,3122.5,0.61403906]
[1720682628463,2.50821298,3122.9,3122.5,0.61403906]
[1720682628644,1.39838423,3122.8,3122.5,0.61403906]
[1720682628810,2.61244952,3123.5,3122.5,0.61403906]
[1720682629140,2.50820433,3123.4,3122.5,0.61403906]
[1720682629303,2.50820433,3123.3,3122.5,0.61403906]
[1720682629500,2.50820433,3123.2,3122.5,0.61403906]
[1720682629699,2.50820433,3123.1,3122.5,0.61403906]
[1720682629928,2.50820433,3123.0,3122.5,0.61403906]
[1720682630147,2.50820433,3122.9,3122.5,0.61403906]
[1720682630308,1.39837941,3122.8,3122.5,0.61403906]
[1720682630503,1.39839665,3122.7,3122.5,0.61403906]
[1720682630821,0.54562559,3123.4,3122.5,0.55]
[1720682631017,2.61244952,3123.5,3122.5,0.55]
[1720682631018,2.82404133,3123.3,3122.5,0.55]
[1720682631226,2.50823382,3123.2,3122.4,0.0640352]
[1720682631532,2.50831277,3123.1,3122.5,0.55]
[1720682631727,2.50831277,3123.0,3122.5,0.55]
[1720682632038,2.50831277,3122.9,3122.3,0.55]
[1720682632245,2.50831277,3122.8,3122.3,1.2061914]
[1720682632439,1.39843985,3122.7,3122.3,1.2061914]
[1720682632602,1.39843985,3122.6,3122.3,1.2061914]
[1720682632806,0.31580751,3123.3,3122.3,1.2061914]
[1720682633042,2.50834246,3123.2,3122.3,1.2061914]
[1720682633229,2.50834246,3123.1,3122.3,1.2061914]
[1720682633431,0.31580751,3123.3,3122.3,1.2061914]
[1720682633432,2.50834246,3123.0,3122.3,1.2061914]
[1720682633747,2.50834246,3122.9,3122.3,1.2061914]
[1720682633917,2.50834246,3122.8,3122.4,0.42061914]
[1720682634117,2.50834246,3122.7,3122.5,0.55]
[1720682634336,1.39845642,3122.6,3122.3,1.2061914]
[1720682634546,2.37362769,3123.5,3122.3,1.2061914]
[1720682634547,2.37362769,3123.5,3122.3,1.14215]
[1720682634771,2.50836377,3123.4,3122.3,1.14215]
[1720682635057,2.50836752,3123.3,3122.3,1.14215]
[1720682635257,2.50836752,3123.2,3122.3,1.14215]
[1720682635461,2.50836752,3123.1,3122.3,1.14215]
[1720682635754,2.50836752,3123.0,3122.3,1.20618971]
[1720682636061,2.50836752,3122.9,3122.3,1.20618971]
[1720682636230,2.50836752,3122.8,3122.3,1.20618971]
[1720682636412,0.48819952,3123.3,3122.3,1.20618971]
[1720682636413,2.50836752,3122.7,3122.3,1.20618971]
[1720682636615,1.39847039,3122.6,3122.3,1.20618971]
[1720682636854,1.39847039,3122.5,3122.4,0.42061897]
[1720682637069,1.39847039,3123.2,3122.4,0.97061897]
[1720682637219,1.10990644,3123.1,3122.5,0.55]
[1720682637558,0.48819952,3123.3,3122.5,0.55]
[1720682637559,2.50837683,3123.0,3122.5,0.55]
[1720682637731,2.50837683,3122.9,3122.5,0.55]
[1720682637931,2.50837683,3122.8,3122.5,0.55]
[1720682638247,2.50837683,3122.7,3122.5,0.55]
[1720682638556,1.39846955,3122.6,3122.4,0.55]
[1720682638768,0.48819952,3123.3,3122.4,0.55]
[1720682639057,2.50835499,3123.2,3122.4,0.55]
[1720682639219,2.50835499,3123.1,3122.4,0.55]
[1720682639554,2.50835499,3123.0,3122.4,0.55]
[1720682639736,1.39846365,3122.9,3122.4,0.55]
[1720682639941,1.10989134,3122.8,3122.4,0.55]
[1720682640143,1.39846365,3122.7,3122.4,0.55]
[1720682640523,1.39846365,3122.6,3122.4,0.55]
[1720682640724,1.39846365,3122.5,3122.3,0.55]
[1720682640921,2.37362769,3123.5,3122.3,0.55]
[1720682641127,2.74583966,3123.4,3122.3,0.55]
[1720682641339,2.50847689,3123.3,3122.3,0.55]
[1720682641655,2.50847689,3123.2,3122.3,0.55]
[1720682641834,2.50847689,3123.1,3122.3,0.55]
[1720682642040,2.50847689,3123.0,3122.3,0.55]
[1720682642347,2.50847689,3122.9,3122.3,0.55]
[1720682642545,2.50847689,3122.8,3122.3,0.55]
[1720682642738,2.50847689,3122.7,3122.3,0.55]
[1720682642922,2.50847689,3122.6,3122.3,0.61404491]
[1720682643120,0.23736277,3123.4,3122.3,0.55]
[1720682643121,1.39853159,3122.5,3122.3,0.55]
[1720682643426,0.23736277,3123.4,3122.3,0.55]
[1720682643655,2.76943247,3123.3,3122.3,0.55]
[1720682643927,2.50833342,3123.2,3122.3,0.55]
[1720682644134,2.50833342,3123.1,3122.3,0.55]
[1720682644341,0.26109905,3123.3,3122.3,0.55]
[1720682644649,2.50839719,3123.2,3122.3,0.55]
[1720682644843,2.50839719,3123.1,3122.3,0.55]
[1720682645026,2.50839719,3123.0,3122.3,0.55]
[1720682645228,2.50839719,3122.9,3122.3,0.55]
[1720682645547,2.50839719,3122.8,3122.3,0.55]
[1720682645752,2.50839719,3122.7,3122.3,0.55]
[1720682646053,2.50839719,3122.6,3122.4,0.355]
[1720682646240,2.50839719,3122.5,3122.4,0.355]
[1720682647842,1.39848693,3122.5,3122.3,0.55]
[1720682648050,2.50842283,3122.4,3122.3,0.55]
[1720682651280,1.39859727,3122.4,3122.3,0.55]
[1720682651476,2.50859511,3122.4,3122.3,0.55]
[1720682652674,2.50859511,3122.4,3122.3,1.379]
[1720682652967,2.50859511,3122.4,3122.3,2.05405]
[1720682653174,2.50859511,3122.4,3122.3,5.05405]
[1720682653357,2.50859511,3122.4,3122.3,2.05405]
[1720682654773,1.39852956,3122.4,3122.3,2.05405]
[1720682654931,2.50847763,3122.4,3122.3,2.05405]
[1720682655437,2.508476,3122.4,3122.3,2.05405]
[1720682658336,2.50853971,3122.4,3122.3,2.05405]
[1720682658637,2.50853308,3122.4,3122.3,2.05405]
[1720682659979,2.50857134,3122.4,3122.3,2.05405]
[1720682661573,2.4667,3122.9,3122.3,2.05405]
[1720682661775,2.4667,3122.9,3122.3,1.379]
[1720682661776,2.50857121,3122.8,3122.3,1.379]
[1720682661941,2.50857121,3122.7,3122.1,3.0]
[1720682662139,2.50857121,3122.6,3122.2,1.379]
[1720682662349,2.50857121,3122.5,3122.2,1.379]
[1720682662670,2.50857121,3122.4,3122.2,1.379]
[1720682662844,2.50857121,3122.3,3122.2,1.379]
[1720682663039,2.50857121,3122.3,3122.1,3.0]
[1720682663240,2.50857121,3122.2,3121.7,7.06361644]
[1720682663457,2.50857121,3122.1,3121.7,7.89261644]
[1720682663680,2.50857121,3122.0,3121.7,7.89261644]
[1720682663879,2.50857121,3121.9,3121.7,7.06361644]
[1720682664060,2.50857121,3121.8,3121.7,7.06361644]
[1720682664448,2.50857121,3121.8,3121.1,7.06361644]
[1720682664686,2.50857121,3121.7,3121.3,0.829]
[1720682664887,2.4557,3122.3,3121.3,0.829]
[1720682664888,2.50937378,3121.6,3121.3,0.829]
[1720682665073,2.4557,3122.3,3121.3,0.829]
[1720682665074,2.50937378,3121.5,3121.3,0.829]
[1720682665288,2.50938356,3121.4,3121.3,0.829]
[1720682665456,2.50937412,3121.4,3121.3,0.829]
[1720682666855,2.50937412,3121.4,3121.3,1.379]
[1720682668383,2.50937412,3121.4,3121.3,0.55]
[1720682668606,1.11033811,3121.4,3121.3,0.55]
[1720682668746,1.39902603,3121.4,3121.2,3.0]
[1720682668951,1.39902603,3121.3,3121.2,3.0]
[1720682669381,1.11039145,3121.3,3121.2,3.0]
[1720682669578,1.39902603,3121.5,3121.2,3.0]
[1720682669859,2.4692,3121.7,3121.2,3.0]
[1720682669860,2.50941779,3121.4,3121.2,3.0]
[1720682670082,2.50941779,3121.3,3121.2,3.0]
[1720682670277,2.50941779,3121.3,3121.1,0.829]
[1720682670479,2.4692,3121.7,3121.1,0.829]
[1720682670480,1.39902603,3121.2,3121.1,0.829]
[1720682670685,1.1104472,3121.2,3121.1,1.379]
[1720682670850,2.50947213,3121.2,3121.1,1.379]
[1720682671397,1.39902603,3121.2,3121.1,1.379]
[1720682671602,1.39902603,3121.6,3121.1,1.379]
[1720682671787,1.11044315,3121.5,3121.1,1.379]
[1720682671951,2.4692,3121.7,3121.1,1.379]
[1720682672158,2.50960913,3121.6,3121.1,0.55]
[1720682672375,2.71612,3121.7,3121.0,1.379]
[1720682672376,2.50960913,3121.5,3121.0,1.379]
[1720682672586,2.50960913,3121.4,3121.0,1.379]
[1720682672799,2.50960913,3121.3,3121.0,1.379]
[1720682673006,1.39915929,3121.2,3121.0,1.379]
[1720682673313,2.71612,3121.7,3121.0,1.379]
[1720682673469,2.78121168,3121.6,3121.0,1.379]
[1720682673673,2.50959968,3121.5,3121.0,1.379]
[1720682673918,2.50959968,3121.4,3121.0,1.379]
[1720682674221,0.271612,3121.6,3120.9,3.829]
[1720682674222,2.50959968,3121.3,3120.9,3.829]
[1720682674402,2.50959968,3121.3,3120.8,12.46]
[1720682674403,1.65011731,3121.2,3120.8,12.46]
[1720682674571,2.50959968,3121.1,3120.8,12.46]
[1720682674768,2.50959968,3121.0,3120.7,0.829]
[1720682674998,0.25095997,3121.2,3120.7,0.829]
[1720682674999,1.39915734,3120.9,3120.7,0.829]
[1720682675199,0.271612,3121.6,3120.7,0.829]
[1720682675418,0.2740812,3121.5,3120.7,0.829]
[1720682675583,1.39933249,3121.4,3120.8,0.06407909]
[1720682675790,1.11058134,3121.3,3120.8,0.06407909]
[1720682676125,2.50991383,3121.2,3120.8,0.06407909]
[1720682676410,2.4692,3121.7,3120.8,0.06407909]
[1720682676586,2.50961967,3121.6,3121.5,0.829]
[1720682676793,2.4934,3122.2,3121.5,0.829]
[1720682676794,2.82880592,3122.2,3121.5,0.829]
[1720682676975,2.79214017,3122.1,3121.6,0.0640669]
[1720682677179,2.50925958,3122.0,3121.7,0.55]
[1720682677382,2.50925958,3121.9,3121.7,0.55]
[1720682677673,2.4934,3122.2,3121.6,0.55]
[1720682677674,2.50925958,3121.8,3121.6,0.55]
[1720682677892,1.39896773,3121.7,3121.6,0.55]
[1720682678090,1.39896773,3122.1,3121.6,0.55]
[1720682678319,1.11029584,3122.0,3121.6,0.55]
[1720682678615,2.50926357,3121.9,3121.6,0.55]
[1720682678829,1.3988823,3121.8,3121.6,0.55]
[1720682678987,2.4934,3122.2,3121.6,0.55]
[1720682679312,2.50918787,3122.1,3121.6,0.55]
[1720682679495,1.39892775,3122.0,3121.6,0.55]
[1720682680022,1.39892775,3121.9,3121.6,0.55]
[1720682680221,2.4934,3122.2,3121.6,0.55]
[1720682680376,2.50908439,3122.1,3121.6,0.55]
[1720682680582,2.50908439,3122.0,3121.6,0.55]
[1720682680777,1.39887006,3121.9,3121.7,0.06406331]
[1720682681027,0.27914202,3122.5,3121.8,0.55]
[1720682681204,1.11018628,3122.4,3121.9,0.06405696]
[1720682681381,1.11018628,3122.3,3121.9,0.06405696]
[1720682682122,1.11019995,3122.2,3121.9,0.06405696]
[1720682682410,1.11019995,3122.1,3121.8,0.61405722]
[1720682682619,1.11019995,3122.3,3121.8,0.61405722]
[1720682682815,1.11019995,3122.2,3121.8,0.61405722]
[1720682683111,1.11019995,3122.4,3121.8,0.61405722]
[1720682683317,1.11019995,3122.1,3121.8,0.61405722]
[1720682683493,1.11019995,3122.0,3121.6,10.06361644]
[1720682683810,0.3845342,3122.4,3121.6,10.06361644]
[1720682683811,1.11019995,3121.9,3121.7,0.55]
[1720682684014,1.11019995,3122.3,3121.7,0.55]
[1720682684315,1.11022827,3122.2,3121.7,0.55]
[1720682684531,1.11022827,3122.1,3121.7,0.61406144]
[1720682684899,1.11022827,3122.0,3121.7,0.61406144]
[1720682685083,0.3845342,3122.4,3121.7,0.61406144]
[1720682685418,1.11020291,3122.3,3121.7,0.55]
[1720682685617,0.3845342,3122.4,3121.6,0.55]
[1720682685802,1.11019667,3122.3,3121.6,0.55]
[1720682686323,1.11019667,3122.3,3121.7,0.06406073]
[1720682688035,1.11019667,3122.5,3121.9,2.394]
[1720682688241,1.11019667,3122.4,3122.0,0.61405119]
[1720682688451,1.11019667,3122.3,3122.0,0.55]
[1720682688639,1.11019667,3122.3,3122.1,0.6308856]
[1720682688924,1.11019667,3122.2,3122.1,0.6308856]
[1720682689125,2.4325,3122.9,3122.2,0.55]
[1720682689291,1.11004838,3122.8,3122.2,0.55]
[1720682689493,1.11010303,3122.7,3122.0,3.0]
[1720682689692,1.11010303,3122.6,3121.6,2.3524]
[1720682689912,1.11010303,3122.8,3121.7,0.78524]
[1720682690194,1.11010303,3122.8,3121.7,3.78524]
[1720682690395,1.11010303,3122.8,3121.7,3.55]
[1720682690894,1.11010303,3122.8,3121.7,0.55]
[1720682691239,1.11010303,3122.8,3121.8,0.06405383]
[1720682691438,1.11010303,3122.8,3121.9,0.55]
[1720682691735,1.11010303,3122.8,3121.9,2.9024]
[1720682692028,1.11010303,3122.8,3122.0,3.35429379]
[1720682692234,1.11010303,3122.8,3122.1,0.55]
[1720682692399,1.11002368,3122.7,3122.1,0.55]
[1720682692727,1.11002368,3122.6,3122.1,0.55]
[1720682692929,1.11002368,3122.8,3122.1,0.55]
[1720682693112,1.11002368,3122.5,3122.1,0.55]
[1720682693319,1.11002368,3122.4,3122.1,0.55]
[1720682693515,1.11002368,3122.8,3122.1,1.17566938]
[1720682695639,1.11002368,3122.8,3122.2,0.0640486]
[1720682695942,2.3738,3123.3,3122.3,0.55]
[1720682695943,1.10995479,3122.7,3122.3,0.55]
[1720682696152,1.10995479,3122.6,3122.4,0.06404592]
[1720682696307,2.3738,3123.3,3122.5,0.55]
[1720682696640,1.34902881,3123.2,3122.5,0.55]
[1720682696846,1.1099376,3123.1,3122.5,0.55]
[1720682697052,1.1099376,3123.2,3122.6,2.38634473]
[1720682697212,1.1099376,3123.1,3122.7,0.55]
[1720682697413,1.1099376,3123.0,3122.7,0.55]
[1720682697755,0.01711213,3123.4,3122.8,0.59363447]
[1720682697961,1.10978169,3123.3,3122.8,0.06403856]
[1720682698259,1.10978169,3123.2,3122.8,0.06403856]
[1720682698573,0.01711213,3123.4,3122.8,0.06403856]
[1720682698574,1.10978169,3123.1,3122.9,0.55]
[1720682698762,1.10978169,3123.3,3122.9,0.55]
[1720682698960,1.10978169,3123.2,3122.9,0.91140386]
[1720682699312,1.10976429,3123.1,3122.9,0.91140386]
[1720682699510,0.01711213,3123.4,3122.9,0.91140386]
[1720682699751,1.10977317,3123.3,3122.9,0.91140386]
[1720682699951,1.10977317,3123.2,3122.9,0.91140386]
[1720682700156,0.01711213,3123.4,3122.9,0.91140386]
[1720682700459,1.10977107,3123.3,3122.9,0.91140386]
[1720682700657,1.10977107,3123.2,3122.9,0.91140386]
[1720682700829,1.10977107,3123.3,3123.0,0.17404039]
[1720682701152,1.10977107,3123.3,3123.1,0.55]
[1720682701716,0.01711213,3123.4,3123.1,0.55]
[1720682701953,1.10978303,3123.2,3123.1,0.55]
[1720682702645,1.10978303,3123.3,3123.1,0.55]
[1720682703049,0.01711213,3123.4,3123.2,3.179]
[1720682703245,0.01711213,3123.4,3123.3,3.92930283]
[1720682704832,0.01711213,3123.4,3123.3,3.9933292]
[1720682705678,0.01711213,3123.4,3123.3,6.33301242]
[1720682705823,0.0025,3124.0,3123.4,2.3397]
[1720682706163,0.0025,3124.0,3123.6,2.2716]
[1720682706347,0.0025,3124.0,3123.7,0.90256121]
[1720682706660,0.0025,3124.0,3123.9,1.988]
[1720682706818,0.0025,3124.0,3123.9,2.538]
[1720682707155,0.0025,3124.0,3123.9,5.538]
[1720682708622,0.0025,3124.0,3123.9,7.9858]
[1720682708961,0.0025,3124.0,3123.9,8.81963612]
[1720682710680,2.4466,3125.7,3123.9,8.81963612]
[1720682710681,2.4466,3125.7,3124.0,2.4447]
[1720682710822,2.2508,3126.6,3125.4,2.4447]
[1720682711024,2.2508,3126.6,3125.5,0.61397912]
[1720682711219,2.2508,3126.6,3125.5,3.61397912]
[1720682711455,2.2508,3126.6,3125.5,4.41864703]
[1720682712970,2.2508,3126.6,3125.5,1.41864703]
[1720682713463,0.1133518,3126.9,3125.5,1.41864703]
[1720682713464,0.1133518,3126.9,3125.7,1.988]
[1720682713636,0.1133518,3126.9,3125.7,5.60196866]
[1720682714757,0.1133518,3126.9,3125.8,1.42370677]
[1720682714958,0.1133518,3126.9,3125.8,4.42370677]
[1720682715130,0.1133518,3126.9,3126.1,1.988]
[1720682715336,0.1133518,3126.9,3125.8,4.42370677]
[1720682715337,0.1133518,3126.9,3126.5,1.988]
[1720682715539,0.1133518,3126.9,3126.6,0.61395285]
[1720682715724,0.1133518,3126.9,3126.6,3.87414814]
[1720682716163,0.1133518,3126.9,3126.6,3.55]
[1720682716379,0.1133518,3126.9,3126.2,3.0]
[1720682722225,0.1133518,3126.9,3125.8,7.06361644]
[1720682722485,2.4153,3126.8,3125.8,7.06361644]
[1720682722633,5.7943,3126.7,3125.5,7.06361644]
[1720682722978,2.4153,3126.5,3125.5,7.06361644]
[1720682724181,2.4153,3126.5,3125.6,3.06397944]
[1720682724335,2.4153,3126.5,3125.7,0.55]
[1720682724534,2.4153,3126.5,3125.8,0.06397938]
[1720682724733,2.4153,3126.5,3125.9,0.55]
[1720682724944,2.65683,3126.5,3125.9,0.55]
[1720682725482,2.65683,3126.5,3125.7,0.55]
[1720682727285,2.65683,3126.5,3125.5,7.06361644]
[1720682727461,2.65683,3126.5,3125.6,0.55]
[1720682728404,1.10897504,3126.4,3125.6,0.55]
[1720682728554,0.3765805,3126.3,3125.6,0.55]
[1720682730280,1.10899005,3126.2,3125.6,0.55]
[1720682730496,0.3765805,3126.3,3125.6,0.55]
[1720682730798,1.10898894,3126.2,3125.2,10.06361644]
[1720682731123,0.3765805,3126.3,3125.2,10.06361644]
[1720682731253,1.10904349,3126.2,3125.2,10.06361644]
[1720682731458,1.10904349,3126.1,3125.2,10.06361644]
[1720682731780,0.3765805,3126.3,3125.2,10.06361644]
[1720682732090,2.4959,3125.9,3125.2,10.06361644]
[1720682732262,1.35861694,3125.8,3125.2,10.06361644]
[1720682732591,0.24959,3125.8,3125.2,10.06361644]
[1720682733155,1.10905916,3125.7,3125.2,10.06361644]
[1720682733357,2.4959,3125.9,3125.2,10.06361644]
[1720682733553,1.10898569,3125.8,3125.2,10.06361644]
[1720682733783,3.379,3126.7,3125.3,1.00636164]
[1720682733986,1.10899003,3126.6,3125.2,10.06361644]
[1720682734185,1.10899003,3126.5,3125.2,10.06361644]
[1720682734496,2.4464,3126.3,3125.2,10.06361644]
[1720682734697,1.10899003,3126.2,3125.2,10.06361644]
[1720682735074,2.4464,3126.3,3125.2,10.06361644]
[1720682735279,1.353726,3126.2,3125.2,10.06361644]
[1720682735486,1.109086,3126.1,3125.3,0.61398786]
[1720682735809,1.109086,3126.0,3125.3,0.61398786]
[1720682735965,1.109086,3125.9,3125.3,0.55]
[1720682736178,1.109086,3125.8,3125.3,0.55]
[1720682736381,1.109086,3125.7,3125.3,1.84877164]
[1720682736586,2.4464,3126.3,3125.3,0.55]
[1720682736788,1.10897453,3126.2,3125.3,0.55]
[1720682737082,1.10897453,3126.2,3125.2,10.06361644]
[1720682737879,1.10897453,3126.2,3125.2,7.06361644]
[1720682738824,2.25,3126.0,3125.2,7.06361644]
[1720682739033,5.629,3125.8,3124.8,7.06361644]
[1720682739183,5.629,3125.8,3124.3,12.46]
[1720682739184,6.73797453,3125.7,3124.5,7.06361644]